bitfinex-derivatives/quotes_SOLF0:USTF0_20250712
["timestamp","ask_amount","ask_price","bid_price","bid_amount"]
[1752340962403,183.95,159.97,159.96,10.04895581]
[1752340962804,185.91126621,159.97,159.96,10.04895581]
[1752340963618,183.95,159.97,159.96,10.04895581]
[1752340963909,1.96126621,159.98,159.97,3.62]
[1752340964110,182.52126621,159.98,159.97,10.04895581]
[1752340964305,185.91126621,159.98,159.97,10.04895581]
[1752340964709,183.95,159.98,159.97,10.04895581]
[1752340964909,180.56,159.98,159.97,10.04895581]
[1752340965505,185.91126621,159.98,159.97,10.04895581]
[1752340966718,185.91126621,159.98,159.97,6.42895581]
[1752340967012,187.01473273,159.98,159.97,6.42895581]
[1752340967915,187.01473273,159.98,159.97,10.04895581]
[1752340970409,183.62473273,159.98,159.97,10.04895581]
[1752340971116,187.01473273,159.98,159.97,10.04895581]
[1752340974519,183.95,159.98,159.97,10.04895581]
[1752340977714,183.95,159.98,159.97,6.42895581]
[1752340978814,183.95,159.98,159.93,3.62]
[1752340978815,180.56,159.98,159.93,3.62]
[1752340979119,3.39,159.94,159.93,3.62]
[1752340979323,183.93,159.94,159.93,3.62]
[1752340980314,180.54,159.94,159.93,3.62]
[1752340983416,183.93,159.94,159.93,3.62]
[1752340984315,186.99473273,159.94,159.93,3.62]
[1752340984618,3.39,159.93,159.89,3.62]
[1752340984818,3.39,159.93,159.89,9.8721]
[1752340985021,3.39,159.93,159.9,3.62]
[1752340985816,3.06473273,159.92,159.91,3.6]
[1752340986022,6.56473273,159.92,159.91,3.6]
[1752340987818,3.5,159.91,159.89,3.6]
[1752340988018,3.5,159.9,159.86,124.87338645]
[1752340988519,3.5,159.9,159.87,6.2528]
[1752340988719,3.5,159.9,159.88,3.6]
[1752340990021,3.06473273,159.92,159.88,9.8524]
[1752340990323,3.5,159.91,159.89,3.6]
[1752340990717,6.56473273,159.92,159.89,3.6]
[1752340990920,6.56473273,159.92,159.9,6.43616304]
[1752340991115,6.56473273,159.92,159.91,10.03616304]
[1752340991920,6.56473273,159.92,159.91,6.43616304]
[1752340995026,3.06473273,159.92,159.9,3.6]
[1752340995325,3.5,159.91,159.9,3.6]
[1752340996326,6.56473273,159.93,159.9,3.6]
[1752340996932,3.06473273,159.93,159.9,3.6]
[1752340997224,3.5,159.92,159.9,3.6]
[1752340997628,3.06473273,159.93,159.9,3.6]
[1752340997827,184.04,159.94,159.9,3.6]
[1752340998027,180.54,159.94,159.9,3.6]
[1752340998321,184.04,159.94,159.91,3.6]
[1752341001928,180.54,159.94,159.91,3.6]
[1752341002228,6.56473273,159.93,159.91,3.6]
[1752341003630,3.5,159.93,159.91,3.6]
[1752341003832,6.56473273,159.93,159.91,3.6]
[1752341008346,3.5,159.93,159.91,3.6]
[1752341008535,6.56473273,159.93,159.91,3.6]
[1752341008730,3.06648606,159.93,159.91,3.6]
[1752341008930,5.46261541,159.92,159.86,121.63063764]
[1752341009136,1.96261541,159.92,159.86,126.83600186]
[1752341009431,1.96261541,159.92,159.89,3.6]
[1752341010441,180.54,159.94,159.89,3.6]
[1752341010642,1.96261541,159.93,159.89,3.6]
[1752341010844,1.96261541,159.93,159.89,9.8519]
[1752341011040,1.96261541,159.93,159.9,3.6]
[1752341011840,3.5,159.92,159.91,3.6]
[1752341012040,5.46261541,159.92,159.91,3.6]
[1752341012239,186.04261541,159.92,159.91,3.6]
[1752341014650,5.46261541,159.92,159.91,3.6]
[1752341018553,1.96261541,159.92,159.91,3.6]
[1752341019254,5.32261541,159.92,159.91,3.6]
[1752341020055,1.96261541,159.92,159.91,3.6]
[1752341024761,5.32261541,159.92,159.9,3.62]
[1752341024967,1.96261541,159.92,159.9,3.62]
[1752341028462,5.32261541,159.92,159.89,3.62]
[1752341029461,1.96261541,159.91,159.89,3.62]
[1752341030265,5.32261541,159.91,159.89,3.62]
[1752341030870,3.36,159.92,159.89,3.62]
[1752341031171,1.96261541,159.91,159.89,3.62]
[1752341033670,1.96261541,159.91,159.9,3.26306357]
[1752341033866,1.96261541,159.91,159.9,6.88306357]
[1752341034775,5.32261541,159.91,159.9,3.26306357]
[1752341037277,5.32309102,159.91,159.9,3.26306357]
[1752341038380,5.32309102,159.91,159.9,3.26425882]
[1752341038671,5.32309102,159.91,159.9,6.88425882]
[1752341041381,5.32309102,159.91,159.9,3.26425882]
[1752341042781,3.36,159.9,159.85,3.62]
[1752341042983,5.32309102,159.86,159.85,3.62]
[1752341043683,1.96309102,159.86,159.85,3.62]
[1752341044576,3.36,159.87,159.85,3.62]
[1752341044768,1.96309102,159.86,159.85,3.62]
[1752341045570,1.96309102,159.86,159.83,6.2544]
[1752341045774,1.96309102,159.84,159.83,3.66]
[1752341046080,1.96309102,159.86,159.83,3.66]
[1752341046669,5.58309102,159.86,159.83,3.66]
[1752341046875,3.62,159.88,159.83,3.66]
[1752341047181,180.56,159.88,159.85,5.62309102]
[1752341047380,180.56,159.88,159.85,1.96309102]
[1752341047576,180.56,159.88,159.86,3.66]
[1752341048177,1.96309102,159.87,159.83,3.66]
[1752341048378,5.58309102,159.86,159.83,3.66]
[1752341048678,1.96309102,159.85,159.83,3.66]
[1752341051373,3.62,159.86,159.83,3.66]
[1752341051680,1.96309102,159.85,159.83,3.66]
[1752341053782,3.62,159.87,159.83,3.66]
[1752341053983,540.32,159.89,159.86,1.96309102]
[1752341054184,182.54309102,159.9,159.87,3.66]
[1752341055886,180.58,159.9,159.87,3.66]
[1752341056081,182.54309102,159.9,159.87,3.66]
[1752341057282,180.58,159.9,159.87,3.66]
[1752341057584,182.54309102,159.9,159.87,3.66]
[1752341057783,180.58,159.9,159.87,3.66]
[1752341057985,196.99782462,159.94,159.9,3.66]
[1752341057986,3.62,159.93,159.9,3.66]
[1752341058286,180.56,159.92,159.9,3.66]
[1752341058785,182.52309102,159.92,159.9,3.66]
[1752341059881,180.56,159.92,159.9,3.66]
[1752341060775,182.52309102,159.92,159.9,3.66]
[1752341061487,180.56,159.92,159.9,3.66]
[1752341062088,180.56,159.92,159.91,3.66]
[1752341063390,182.52309102,159.92,159.89,3.66]
[1752341063687,5.58309102,159.91,159.89,3.66]
[1752341064185,186.14309102,159.92,159.89,3.66]
[1752341064385,3.62,159.91,159.89,3.66]
[1752341064587,5.58309102,159.9,159.89,3.66]
[1752341066791,3.62,159.9,159.89,3.66]
[1752341069093,3.62,159.91,159.89,3.66]
[1752341069296,3.62,159.9,159.89,3.66]
[1752341070395,184.18,159.92,159.89,3.66]
[1752341070595,3.62,159.91,159.89,3.66]
[1752341072397,3.62,159.91,159.89,9.912]
[1752341072590,3.62,159.91,159.9,3.66]
[1752341076098,180.56,159.92,159.9,3.66]
[1752341076590,184.03,159.92,159.9,3.66]
[1752341078494,180.56,159.92,159.9,3.66]
[1752341078791,184.03,159.92,159.9,3.66]
[1752341079299,180.56,159.92,159.9,3.66]
[1752341079800,184.03,159.92,159.9,3.66]
[1752341079997,3.47,159.91,159.88,3.35]
[1752341080801,3.47,159.91,159.88,6.2523]
[1752341081001,3.47,159.91,159.89,3.35]
[1752341081300,180.56,159.92,159.89,3.35]
[1752341082901,180.56,159.92,159.89,9.6021]
[1752341083098,184.03,159.92,159.9,3.35]
[1752341085001,180.56,159.92,159.9,3.35]
[1752341085506,180.56,159.92,159.9,6.2515]
[1752341085806,180.56,159.92,159.91,3.35]
[1752341086808,180.56,159.92,159.91,5.31172767]
[1752341087009,180.56,159.92,159.91,3.35]
[1752341094712,184.03,159.92,159.91,3.35]
[1752341096719,185.99172767,159.92,159.91,3.35]
[1752341097019,185.99172767,159.92,159.88,3.35]
[1752341097020,3.47,159.91,159.88,3.35]
[1752341097221,3.47,159.89,159.88,3.35]
[1752341100325,3.47,159.89,159.84,3.35]
[1752341100526,5.43270062,159.85,159.84,3.35]
[1752341102026,5.43270062,159.85,159.81,5.20873047]
[1752341102027,3.47,159.84,159.83,3.35]
[1752341102228,5.43270062,159.84,159.83,3.35]
[1752341102528,5.43453141,159.84,159.83,3.35]
[1752341102924,3.47,159.84,159.83,3.35]
[1752341103635,3.47,159.91,159.83,3.35]
[1752341103930,3.47,159.89,159.83,3.35]
[1752341104140,3.47,159.89,159.84,3.35]
[1752341104636,183.56934627,159.9,159.84,3.35]
[1752341104637,3.47,159.88,159.84,3.35]
[1752341107031,3.64,159.87,159.84,3.35]
[1752341112040,3.64,159.87,159.84,9.604]
[1752341112240,3.64,159.87,159.85,3.36]
[1752341113940,3.64,159.85,159.83,3.36]
[1752341114133,3.64,159.85,159.84,3.36]
[1752341117544,3.64,159.85,159.8,11.46413047]
[1752341117742,3.64,159.85,159.83,3.36]
[1752341118947,3.06934627,159.84,159.8,3.36]
[1752341119145,3.64,159.83,159.8,3.36]
[1752341119547,3.64,159.83,159.79,3.36]
[1752341126854,3.06934627,159.82,159.79,3.36]
[1752341127048,3.64,159.81,159.79,3.36]
[1752341130656,3.64,159.81,159.76,6.257]
[1752341130848,5.60521311,159.81,159.8,3.36]
[1752341131255,11.86041311,159.81,159.8,3.36]
[1752341132148,3.64,159.83,159.8,3.36]
[1752341132350,180.54,159.83,159.8,5.32521311]
[1752341132551,180.54,159.83,159.81,3.36]
[1752341132854,6.2549,159.82,159.81,3.36]
[1752341143057,9.8549,159.82,159.81,3.36]
[1752341144565,6.2549,159.82,159.81,3.36]
[1752341150362,6.2549,159.82,159.81,8.03103655]
[1752341154378,180.54,159.84,159.82,3.59]
[1752341154575,180.54,159.84,159.83,8.26235298]
[1752341157079,184.14,159.84,159.83,8.26235298]
[1752341157373,180.54,159.84,159.83,8.26235298]
[1752341161477,180.54,159.84,159.83,16.48093351]
[1752341161680,544.02,159.88,159.84,3.59]
[1752341161983,180.5,159.87,159.86,3.59]
[1752341162282,180.5,159.87,159.86,8.26235298]
[1752341163683,1.08884404,159.89,159.87,3.59]
[1752341163887,3.6,159.9,159.88,8.26235298]
[1752341164088,3.6,159.9,159.89,4.67235298]
[1752341164390,3.6,159.9,159.89,8.26235298]
[1752341164689,180.5,159.91,159.9,3.59]
[1752341164885,180.5,159.91,159.9,8.26235298]
[1752341165585,180.5,159.91,159.9,11.32782094]
[1752341165785,3.3,159.95,159.9,11.32782094]
[1752341165786,180.48,159.95,159.91,9.7412]
[1752341165981,180.48,159.95,159.93,3.49]
[1752341166187,180.48,159.95,159.94,8.16235298]
[1752341166490,180.48,159.95,159.94,3.49]
[1752341167190,183.78,159.95,159.94,3.49]
[1752341167791,180.48,159.95,159.94,3.49]
[1752341169682,3.3,159.98,159.94,3.49]
[1752341169894,3.3,159.98,159.94,3.06546796]
[1752341170188,3.3,159.98,159.95,3.49]
[1752341170596,1.0881631,159.99,159.95,3.49]
[1752341170782,3.3,159.96,159.94,3.49]
[1752341171193,4.3881631,159.99,159.94,3.49]
[1752341171398,1.0881631,159.99,159.94,3.49]
[1752341171689,3.3,159.98,159.94,3.49]
[1752341171887,1.0881631,159.99,159.96,3.49]
[1752341172192,3.3,159.99,159.96,3.49]
[1752341173490,3.3,159.99,159.95,3.49]
[1752341175192,3.3,159.99,159.93,3.49]
[1752341175587,3.3,159.99,159.95,3.49]
[1752341175793,3.3,159.99,159.96,3.49]
[1752341177396,3.3,159.97,159.87,3.49]
[1752341177593,186.16546796,159.96,159.88,14.08223113]
[1752341177895,186.16546796,159.96,159.9,3.49]
[1752341177896,3.3,159.95,159.9,3.49]
[1752341178095,3.3,159.95,159.91,6.38734361]
[1752341178294,3.3,159.95,159.92,9.87734361]
[1752341178491,3.3,159.95,159.93,6.38734361]
[1752341178694,3.3,159.95,159.92,3.49]
[1752341178896,3.3,159.95,159.93,6.38797274]
[1752341179093,3.3,159.95,159.92,3.49]
[1752341179494,3.3,159.95,159.88,9.31786796]
[1752341179699,3.3,159.95,159.89,6.38799439]
[1752341179990,3.3,159.95,159.91,3.49]
[1752341180189,3.3,159.95,159.92,6.38799439]
[1752341180390,3.3,159.95,159.93,9.87799439]
[1752341180587,3.3,159.95,159.93,3.49]
[1752341182593,3.3,159.94,159.93,3.49]
[1752341185394,6.36546796,159.94,159.84,3.49]
[1752341185590,3.3,159.93,159.87,3.49]
[1752341185793,3.06546796,159.92,159.89,3.49]
[1752341185994,3.06546796,159.92,159.9,9.8811626]
[1752341186194,3.06546796,159.92,159.9,3.49]
[1752341186702,3.3,159.91,159.9,3.49]
[1752341186902,3.3,159.91,159.9,9.88294601]
[1752341193902,3.3,159.92,159.9,9.88294601]
[1752341194204,3.3,159.92,159.91,9.88294601]
[1752341194805,3.3,159.93,159.92,3.49]
[1752341195005,3.3,159.93,159.92,9.88294601]
[1752341205216,3.37,159.95,159.93,3.37]
[1752341205415,3.37,159.95,159.94,6.39294601]
[1752341205624,3.37,159.95,159.94,9.76294601]
[1752341206314,189.53546796,159.96,159.94,9.76294601]
[1752341206514,6.43546796,159.96,159.95,9.76294601]
[1752341207816,6.43546796,159.96,159.95,6.39294601]
[1752341210019,6.43546796,159.96,159.95,9.76294601]
[1752341212719,6.43546796,159.96,159.95,6.39294601]
[1752341213521,3.06546796,159.96,159.93,3.37]
[1752341213820,182.46,159.97,159.91,3.37]
[1752341213821,6.43546796,159.94,159.91,3.37]
[1752341214020,3.06546796,159.94,159.91,3.37]
[1752341214325,3.37,159.93,159.91,3.37]
[1752341214518,3.37,159.9,159.87,3.37]
[1752341214718,3.37,159.9,159.89,3.37]
[1752341214922,3.37,159.9,159.89,8.06596911]
[1752341215621,3.37,159.9,159.89,3.37]
[1752341216528,6.43546796,159.9,159.84,5.21239572]
[1752341216827,3.37,159.89,159.85,4.69979264]
[1752341217027,3.37,159.87,159.86,8.06979264]
[1752341219132,3.37,159.87,159.86,4.69979264]
[1752341219338,3.37,159.87,159.85,3.37]
[1752341219727,6.43546796,159.86,159.85,3.37]
[1752341220538,3.06546796,159.86,159.85,3.37]
[1752341220739,6.43546796,159.88,159.85,3.37]
[1752341221633,3.37,159.87,159.85,3.37]
[1752341221937,3.06546796,159.88,159.8,8.27786368]
[1752341222138,6.43546796,159.86,159.83,3.37]
[1752341222438,6.43546796,159.86,159.78,8.27786368]
[1752341222439,3.37,159.84,159.78,8.27786368]
[1752341222739,3.06546796,159.84,159.79,4.69960957]
[1752341222936,3.37,159.83,159.8,4.69960957]
[1752341223133,3.37,159.83,159.81,4.69960957]
[1752341223333,3.37,159.83,159.82,3.37]
[1752341224638,182.18,159.85,159.82,3.37]
[1752341224830,188.61546796,159.85,159.82,3.37]
[1752341225036,3.37,159.84,159.83,3.37]
[1752341226138,9.624,159.84,159.83,3.37]
[1752341227845,9.624,159.84,159.73,5.21239572]
[1752341227846,3.06546796,159.84,159.73,5.21239572]
[1752341228042,3.52,159.79,159.74,4.69239145]
[1752341228242,6.58546796,159.8,159.75,4.69239145]
[1752341228435,6.58546796,159.8,159.76,4.69239145]
[1752341228634,3.52,159.84,159.77,4.69239145]
[1752341228944,6.58546796,159.84,159.78,4.69239145]
[1752341229150,3.52,159.83,159.79,4.69239145]
[1752341229441,9.7745,159.83,159.78,9.32166796]
[1752341229644,9.7745,159.83,159.79,4.68660141]
[1752341229836,9.7745,159.83,159.78,9.32166796]
[1752341230036,9.7745,159.83,159.79,4.68660141]
[1752341230341,9.7745,159.83,159.8,3.61]
[1752341230942,6.2542,159.84,159.81,3.61]
[1752341231142,3.52,159.83,159.82,3.61]
[1752341231647,9.7744,159.83,159.82,3.61]
[1752341232145,3.52,159.83,159.82,3.61]
[1752341236442,543.98,159.86,159.82,3.61]
[1752341236647,726.46,159.86,159.82,3.61]
[1752341236841,722.94,159.86,159.83,6.2541]
[1752341237037,722.94,159.86,159.84,3.61]
[1752341238547,182.48,159.86,159.84,3.61]
[1752341238846,182.48,159.86,159.84,6.254]
[1752341239050,182.48,159.86,159.85,3.61]
[1752341240448,186.0,159.86,159.85,3.61]
[1752341240751,182.48,159.86,159.85,3.61]
[1752341244950,186.0,159.86,159.85,3.61]
[1752341245151,3.52,159.85,159.84,3.61]
[1752341247344,186.0,159.86,159.84,3.61]
[1752341250052,3.52,159.85,159.84,3.61]
[1752341250955,186.0,159.86,159.84,3.61]
[1752341251154,3.52,159.85,159.84,3.61]
[1752341256153,3.52,159.85,159.81,3.64]
[1752341256351,3.37,159.83,159.81,3.64]
[1752341256657,3.37,159.83,159.82,3.64]
[1752341257858,3.37,159.83,159.81,3.64]
[1752341259458,3.37,159.83,159.79,3.64]
[1752341259759,3.37,159.81,159.79,3.64]
[1752341260154,3.37,159.81,159.75,5.21239572]
[1752341260356,3.37,159.81,159.77,3.64]
[1752341260556,3.37,159.81,159.78,4.69485006]
[1752341260557,3.06546796,159.8,159.78,4.69485006]
[1752341260757,6.43546796,159.8,159.77,3.64]
[1752341260958,3.37,159.79,159.78,4.6966247]
[1752341261862,3.37,159.79,159.78,8.3366247]
[1752341263463,3.37,159.79,159.78,4.6966247]
[1752341264161,3.37,159.79,159.77,3.64]
[1752341264557,6.2564,159.78,159.77,3.64]
[1752341264759,9.6264,159.78,159.77,3.64]
[1752341265264,3.37,159.76,159.74,3.64]
[1752341265459,3.37,159.76,159.75,8.33260652]
[1752341266064,9.6272,159.76,159.75,8.33260652]
[1752341266265,3.37,159.76,159.75,8.33260652]
[1752341267159,3.37,159.76,159.75,4.69260652]
[1752341267360,182.46,159.81,159.75,3.64]
[1752341267564,6.43546796,159.8,159.75,3.64]
[1752341267759,3.37,159.79,159.76,4.68962557]
[1752341267964,3.37,159.79,159.77,3.64]
[1752341268470,3.37,159.77,159.76,3.64]
[1752341268964,9.6268,159.77,159.76,3.64]
[1752341269364,3.37,159.77,159.76,3.64]
[1752341270760,3.37,159.76,159.73,3.64]
[1752341270959,3.37,159.77,159.73,3.64]
[1752341271157,3.37,159.76,159.73,3.64]
[1752341271466,3.37,159.76,159.74,3.64]
[1752341271858,6.2565,159.78,159.75,6.2574]
[1752341272062,9.6265,159.78,159.76,3.64]
[1752341272268,6.2565,159.78,159.76,3.64]
[1752341273670,9.6265,159.78,159.76,3.64]
[1752341274664,9.6262,159.79,159.74,3.64]
[1752341275663,9.6262,159.79,159.76,6.2569]
[1752341275864,3.37,159.78,159.77,3.64]
[1752341276068,3.37,159.8,159.77,3.64]
[1752341276264,3.37,159.79,159.77,3.64]
[1752341276970,3.37,159.78,159.77,3.64]
[1752341277372,3.37,159.78,159.75,3.64]
[1752341277573,3.37,159.79,159.75,3.64]
[1752341277972,3.37,159.79,159.76,6.257]
[1752341278171,3.37,159.79,159.77,3.64]
[1752341278572,3.37,159.79,159.77,9.8967]
[1752341278874,3.37,159.79,159.78,3.64]
[1752341279268,182.46,159.81,159.78,3.64]
[1752341279469,3.37,159.8,159.79,3.64]
[1752341280471,182.46,159.81,159.79,3.64]
[1752341280774,182.46,159.81,159.8,9.8956]
[1752341280971,3.37,159.82,159.8,9.8956]
[1752341281176,722.88,159.85,159.81,6.2552]
[1752341281376,3.37,159.84,159.82,3.64]
[1752341281776,3.37,159.84,159.8,3.06546796]
[1752341281973,182.34,159.85,159.83,3.64]
[1752341282477,182.34,159.85,159.84,3.64]
[1752341282676,3.37,159.87,159.84,3.64]
[1752341283276,3.37,159.86,159.85,3.64]
[1752341283772,3.37,159.87,159.85,3.64]
[1752341287780,3.37,159.87,159.85,9.8935]
[1752341287976,185.68,159.89,159.86,3.43]
[1752341289378,3.32,159.88,159.86,3.43]
[1752341291876,3.32,159.87,159.86,3.43]
[1752341292382,182.36,159.89,159.86,3.43]
[1752341292582,3.32,159.87,159.86,3.43]
[1752341294783,3.32,159.88,159.86,3.43]
[1752341296879,3.32,159.87,159.86,3.43]
[1752341299086,182.36,159.89,159.86,3.43]
[1752341299283,185.68,159.89,159.86,3.43]
[1752341300079,185.68,159.89,159.87,6.2528]
[1752341300278,185.68,159.89,159.86,3.43]
[1752341300683,185.68,159.89,159.86,9.6831]
[1752341301183,182.36,159.89,159.88,6.2525]
[1752341301481,182.36,159.89,159.88,9.6825]
[1752341301681,3.32,159.9,159.88,3.43]
[1752341302082,181.72,159.92,159.88,3.06546796]
[1752341302383,3.32,159.91,159.89,3.43]
[1752341302986,181.72,159.92,159.91,3.43]
[1752341303486,185.04,159.92,159.91,3.43]
[1752341305188,181.72,159.92,159.91,3.43]
[1752341305382,185.04,159.92,159.91,3.43]
[1752341305581,181.72,159.92,159.87,3.06546796]
[1752341305788,3.32,159.91,159.88,3.43]
[1752341307485,3.32,159.9,159.88,3.43]
[1752341308486,3.32,159.9,159.85,3.06546796]
[1752341308684,3.32,159.9,159.84,3.06546796]
[1752341308880,3.32,159.9,159.86,3.43]
[1752341311693,3.32,159.9,159.87,3.43]
[1752341312486,3.32,159.9,159.88,3.43]
[1752341313095,3.32,159.91,159.88,3.43]
[1752341313293,3.32,159.91,159.89,3.43]
[1752341314496,3.32,159.9,159.88,3.43]
[1752341314697,3.32,159.89,159.88,3.43]
[1752341316390,3.32,159.89,159.83,5.21239572]
[1752341316592,3.32,159.89,159.84,7.71967845]
[1752341316795,3.32,159.89,159.86,3.64]
[1752341319391,3.32,159.89,159.87,4.6611496]
[1752341319591,3.32,159.89,159.88,3.64]
[1752341320592,3.32,159.89,159.88,8.30130616]
[1752341322893,3.32,159.89,159.88,14.55380616]
[1752341323094,3.66,159.9,159.88,10.91380616]
[1752341323301,3.66,159.9,159.89,8.30130616]
[1752341323695,3.66,159.91,159.9,3.64]
[1752341323997,3.66,159.91,159.9,8.30130616]
[1752341328100,181.72,159.92,159.9,8.30130616]
[1752341328300,185.38,159.92,159.91,8.30130616]
[1752341328897,185.38,159.92,159.91,3.64]
[1752341331602,181.72,159.92,159.88,3.64]
[1752341331800,3.66,159.91,159.88,3.64]
[1752341332707,3.66,159.91,159.87,3.64]
[1752341335304,3.66,159.91,159.88,3.64]
[1752341335508,3.66,159.91,159.86,5.21239572]
[1752341335803,3.66,159.91,159.89,3.64]
[1752341336001,3.66,159.91,159.9,3.64]
[1752341339909,3.66,159.91,159.89,3.64]
[1752341340118,3.66,159.9,159.89,3.64]
[1752341342716,3.66,159.9,159.88,3.64]
[1752341343613,3.66,159.97,159.89,5.21239572]
[1752341343824,3.66,159.97,159.9,5.21239572]
[1752341344113,3.66,159.95,159.89,9.18888421]
[1752341344508,3.66,159.95,159.9,5.21239572]
[1752341344712,3.66,159.95,159.9,12.37389572]
[1752341344913,3.66,159.95,159.9,7.1615]
[1752341348420,3.66,159.95,159.9,0.91]
[1752341348721,3.64,159.93,159.89,5.21239572]
[1752341349014,3.64,159.92,159.89,5.21239572]
[1752341349519,3.64,159.92,159.87,6.2525]
[1752341349816,3.64,159.92,159.89,5.21618677]
[1752341352419,3.64,159.92,159.88,0.91]
[1752341355421,3.64,159.92,159.89,3.42]
[1752341356120,3.64,159.92,159.9,3.42]
[1752341364330,3.64,159.92,159.88,11.46510923]
[1752341364530,3.64,159.92,159.89,3.42]
[1752341367329,3.64,159.92,159.9,3.42]
[1752341368730,181.38,159.92,159.9,3.42]
[1752341368929,3.64,159.91,159.88,8.63280923]
[1752341369130,3.64,159.91,159.88,3.42]
[1752341369527,3.64,159.9,159.88,3.42]
[1752341371141,3.64,159.89,159.88,3.42]
[1752341372341,3.64,159.9,159.88,9.6725]
[1752341372542,3.64,159.9,159.89,3.42]
[1752341376948,3.64,159.9,159.89,6.2521]
[1752341377146,3.64,159.9,159.89,9.8521]
[1752341377342,540.26,159.97,159.89,9.8521]
[1752341377550,3.56,159.92,159.91,3.6]
[1752341383244,3.56,159.92,159.89,11.81363511]
[1752341383448,3.56,159.92,159.9,3.6]
[1752341384248,3.56,159.92,159.89,13.43023165]
[1752341384448,3.56,159.92,159.91,3.6]
[1752341384648,3.56,159.92,159.9,3.6]
[1752341386950,3.56,159.92,159.89,3.6]
[1752341386951,3.56,159.91,159.89,3.6]
[1752341389552,3.56,159.91,159.88,8.81659654]
[1752341390250,5.52173511,159.91,159.88,8.81659654]
[1752341390652,3.56,159.9,159.88,8.81659654]
[1752341392154,3.56,159.9,159.89,3.6]
[1752341396657,3.56,159.9,159.89,5.56173511]
[1752341396857,3.56,159.9,159.89,10.78068157]
[1752341398154,3.56,159.9,159.89,17.03278157]
[1752341400360,3.56,159.9,159.89,15.07104646]
[1752341401156,3.56,159.9,159.89,8.81894646]
[1752341402664,3.56,159.9,159.89,3.6]
[1752341403059,3.56,159.9,159.88,5.21894646]
[1752341404462,3.56,159.9,159.88,8.81894646]
[1752341404664,3.56,159.9,159.88,15.07144646]
[1752341404855,3.56,159.9,159.88,11.47144646]
[1752341405061,3.56,159.9,159.88,3.6]
[1752341409272,3.56,159.9,159.88,8.81894646]
[1752341409478,3.56,159.9,159.89,3.48]
[1752341410175,3.56,159.9,159.87,11.47164646]
[1752341410373,3.56,159.9,159.88,3.48]
[1752341411171,5.52173511,159.9,159.87,8.69894646]
[1752341411375,3.33,159.88,159.86,8.69894646]
[1752341412275,3.33,159.88,159.85,8.21631737]
[1752341412276,3.33,159.88,159.85,8.69894646]
[1752341412673,5.29301737,159.88,159.85,8.69894646]
[1752341412871,3.33,159.87,159.85,8.69894646]
[1752341413073,3.33,159.87,159.86,3.48]
[1752341415583,3.33,159.87,159.85,8.69894646]